[Event "XII Cracow ICC-A 2024"]
[Site "Krakow"]
[Date "2024.06.23"]
[Round "3.11"]
[White "Gierulski, Kamil"]
[Black "Bogdanov, Egor"]
[Result "1/2-1/2"]
[ECO "B51"]
[WhiteElo "2242"]
[BlackElo "2433"]
[Annotator "TA"]
[PlyCount "128"]
[EventDate "2024.06.20"]
[EventType "swiss"]
[EventCountry "POL"]
[SourceTitle "playchess.com"]
[Source "ChessBase"]
[SourceQuality "1"]
[TimeControl "40/5400+30:1800+30"]

{[%evp 32,128,27,32,51,47,82,70,36,-6,-4,-21,-26,-14,-16,-46,-47,-51,-48,-66,-37,-58,-46,-78,-67,-69,-73,-57,-69,-87,-48,-61,-52,-81,-60,-64,-45,-45,-37,-43,-22,-37,0,-39,-37,-54,-8,-17,0,-26,-4,-12,-21,-25,-6,-38,-45,-45,-35,-27,-36,-58,-8,-5,-6,-13,-16,-10,0,0,0,0,0,0,0,0,32,8,343,319,362,354,461,277,577,515,647,588,801,801,574,8,8,8,8,8,8,8,83]} 1. e4 {[%emt 0:00:03]} c5 {[%emt 0:11:23]} 2. Nf3 {[%emt 0:00:04]} d6 {[%emt 0:00:23]} 3. Bb5+ {[%emt 0:00:05]} Nd7 {[%emt 0:00:10]} 4. a4 {[%emt 0:00:07]} Ngf6 {[%emt 0:00:03]} 5. Nc3 {[%emt 0:00:05]} a6 {[%emt 0:00:01]} 6. Be2 {[%emt 0:00:09] B51: Sicilian: Moscow Variation (3 Bb5+) without 3...Bd7.} b6 {[%emt 0:00:06]} 7. d4 {[%emt 0:00:05]} cxd4 {[%emt 0:00:21]} 8. Qxd4 {[%emt 0:00:05]} Bb7 {[%emt 0:00:08]} 9. O-O {[%emt 0:00:21]} e6 {[%emt 0:00:06]} 10. Rd1 {[%emt 0:00:23]} Qc7 {[%emt 0:00:41]} 11. Be3 {[%emt 0:02:04]} Ng4 {[%emt 0:00:30]} 12. Bg5 {[%emt 0:02:12]} h6 {[%emt 0:01:11]} 13. Bh4 {[%emt 0:00:16]} Nge5 {[%emt 0:01:12]} 14. h3 {[%emt 0:06:17]} Qc5 $146 {[%emt 0:11:14]} ({Predecessor:} 14... Rc8 15. Bg3 Be7 16. Rd2 O-O 17. Nxe5 Nxe5 18. Ra3 Nc6 19. Qe3 Bg5 20. Bf4 Bxf4 21. Qxf4 {1-0 Mishra,A (2524)-Baskin,R (2393) Reykjavik Kvika op 2022 (8)}) 15. Qd2 {[%emt 0:13:48]} Nxf3+ {[%emt 0:05:39]} 16. Bxf3 {[%emt 0:00:04]} Ne5 {[%emt 0:01:26]} 17. Be2 {[%emt 0:00:08]} Rc8 {[%emt 0:00:19]} 18. Ra3 {[%emt 0:08:43]} Be7 {[%emt 0:22:59]} 19. Bxe7 {[%emt 0:06:18]} Kxe7 {[%emt 0:00:06]} 20. Rb3 {[%emt 0:01:28]} Rhd8 {[%emt 0:00:33]} 21. Qd4 {[%emt 0:07:11]} Qxd4 {[%emt 0:04:41]} 22. Rxd4 {[%emt 0:00:05]} Nd7 {[%emt 0:00:29]} 23. f4 {[%emt 0:12:23]} g5 {[%emt 0:08:30]} 24. fxg5 {[%emt 0:00:58]} hxg5 {[%emt 0:00:06]} 25. Kf2 {[%emt 0:01:00]} Rc6 {[%emt 0:00:36]} 26. Ke3 {[%emt 0:01:41]} Rdc8 {[%emt 0:04:39]} 27. Ra3 {[%emt 0:01:19]} Rc5 {[%emt 0:03:55]} 28. Ra1 {[%emt 0:05:46]} Re5 {[%emt 0:05:23]} 29. Kd2 {[%emt 0:01:39]} Rh8 {[%emt 0:01:33]} 30. Bf1 {[%emt 0:06:09]} Rh4 {[%emt 0:02:03]} 31. g3 {[%emt 0:00:37]} Rh6 {[%emt 0:00:31]} 32. Rc4 {[%emt 0:01:16]} Rc5 {[%emt 0:01:15]} 33. Rxc5 {[%emt 0:01:06]} Nxc5 {[%emt 0:07:42]} 34. Ke3 {[%emt 0:00:32]} Rh8 {[%emt 0:00:33]} 35. Rd1 {[%emt 0:01:04]} Rc8 {[%emt 0:00:44]} 36. Be2 {[%emt 0:01:35]} Rh8 {[%emt 0:00:24]} 37. Bf1 $1 {[%emt 0:00:34]} Nd7 {[%emt 0:00:29]} 38. Rd4 {[%emt 0:01:00]} Rc8 {[%emt 0:02:07]} (38... a5 $15 {deserves consideration.}) 39. Be2 $11 {[%emt 0:00:31]} Rc5 {[%emt 0:00:33]} (39... Rh8 40. Rc4 $15) 40. Bd3 {[%emt 0:08:25]} Re5 {[%emt 0:03:16]} 41. b4 {[%emt 0:33:41]} Nb8 {[%emt 0:07:21]} 42. Rc4 {[%emt 0:00:00]} Kd8 {[%emt 0:02:09]} 43. b5 {[%emt 0:00:00]} (43. Rd4 $5) 43... a5 {[%emt 0:01:54]} 44. Rd4 {[%emt 0:00:00]} Rc5 {[%emt 0:03:59]} 45. Nb1 {[%emt 0:00:00]} (45. Rxd6+ $2 Kc7 46. Rd4 Rxc3 $19) 45... Ke7 {[%emt 0:00:48]} 46. Nd2 {[%emt 0:00:00]} e5 {[%emt 0:01:42]} (46... Nd7 $15) 47. Rc4 $11 {[%emt 0:00:00]} Nd7 {[%emt 0:00:39]} 48. Nb3 {[%emt 0:00:00]} Rxc4 {[%emt 0:00:56]} 49. Bxc4 {[%emt 0:00:00]} Nf6 {[%emt 0:02:35]} 50. Nd2 $1 {[%emt 0:00:00]} d5 {[%emt 0:01:49]} 51. exd5 {[%emt 0:00:00]} Bxd5 {[%emt 0:00:05]} 52. h4 {[%emt 0:00:00]} gxh4 {[%emt 0:02:37]} 53. gxh4 {[%emt 0:00:00]} Kd6 {[%emt 0:01:26]} 54. Kd3 {[%emt 0:00:00]} Ng4 $2 {[%emt 0:06:48][%mdl 8192] [#]} (54... Be6 $1 $11 {and Black is okay.}) 55. Bxd5 $1 $18 {[%emt 0:00:00]} Kxd5 {[%emt 0:00:02]} 56. c4+ {[%emt 0:00:00]} Ke6 {[%emt 0:02:05]} 57. Nb3 {[%emt 0:00:00]} f5 $2 {[%emt 0:00:13]} (57... Nf2+ 58. Kc2 Ng4 (58... Ne4 $2 59. c5 $18)) 58. c5 $18 {[%emt 0:00:00]} bxc5 {[%emt 0:00:15]} 59. b6 {[%emt 0:00:49]} (59. Nxc5+ Kd5 60. b6 Kd6 $18 (60... Kxc5 $2 {too greedy.} 61. b7 $18)) 59... e4+ {[%emt 0:00:47]} 60. Ke2 {[%emt 0:00:45]} Kd7 {[%emt 0:01:12]} 61. Nxc5+ $2 {[%emt 0:00:36]} ({Only move:} 61. Nxa5 $18 Kc8 62. Nc4) 61... Kc6 $11 {[%emt 0:00:13]} 62. b7 {[%emt 0:00:06]} Kc7 $1 {[%emt 0:00:04]} 63. h5 {[%emt 0:00:31]} Kb8 {[%emt 0:00:36]} 64. Kd2 {[%emt 0:01:51]} Ka7 {[%emt 0:03:12]} (64... e3+ $11 {keeps the balance.} 65. Ke2 f4) 1/2-1/2

[Event "XII Cracow ICC-A 2024"]
[Site "Krakow"]
[Date "2024.06.23"]
[Round "3.12"]
[White "Sieciechowicz, Marcin"]
[Black "Mahitosh Dey"]
[Result "1-0"]
[ECO "D35"]
[WhiteElo "2405"]
[BlackElo "2232"]
[Annotator "RC"]
[PlyCount "81"]
[EventDate "2024.06.20"]
[EventType "swiss"]
[EventCountry "POL"]
[SourceTitle "playchess.com"]
[Source "ChessBase"]
[SourceQuality "1"]
[TimeControl "40/5400+30:1800+30"]

1. d4 {[%emt 0:02:19]} d5 {[%emt 0:02:22]} 2. c4 {[%emt 0:00:07]} e6 {[%emt 0:00:04]} 3. Nc3 {[%emt 0:00:04]} Nf6 {[%emt 0:00:05]} 4. cxd5 {[%emt 0:00:07]} exd5 {[%emt 0:00:06]} 5. Bg5 {[%emt 0:00:06]} Nbd7 {[%emt 0:00:03]} 6. e3 {[%emt 0:00:18]} Be7 {[%emt 0:00:09]} 7. Qc2 {[%emt 0:00:31]} c6 {[%emt 0:00:05]} 8. Bd3 {[%emt 0:00:14]} Nh5 {[%emt 0:00:39]} 9. Bxe7 {[%emt 0:00:19]} Qxe7 {[%emt 0:00:06]} 10. Nge2 {[%emt 0:00:08]} Ndf6 {[%emt 0:00:12]} 11. O-O {[%emt 0:01:47]} g6 {[%emt 0:00:15]} 12. Qd2 {[%emt 0:03:48]} O-O {[%emt 0:04:01]} 13. Rae1 {[%emt 0:04:20]} Re8 {[%emt 0:01:15]} 14. Nf4 {[%emt 0:03:20]} Nxf4 {[%emt 0:02:40]} 15. exf4 {[%emt 0:00:02]} Qd6 {[%emt 0:00:18]} 16. Re5 {[%emt 0:04:37]} Bd7 {[%emt 0:00:05]} 17. Rfe1 {[%emt 0:08:30]} Ng4 {[%emt 0:00:36]} 18. Rxe8+ {[%emt 0:00:56]} Rxe8 {[%emt 0:00:04]} 19. h3 {[%emt 0:04:27]} Rxe1+ {[%emt 0:01:11]} 20. Qxe1 {[%emt 0:00:01]} Nf6 {[%emt 0:00:06]} 21. Qe5 {[%emt 0:00:40]} Ne8 {[%emt 0:00:04]} 22. Ne2 {[%emt 0:07:17]} f6 {[%emt 0:00:13]} 23. Qe3 {[%emt 0:00:41]} Qe6 {[%emt 0:01:09]} 24. Qd2 {[%emt 0:01:21]} Nd6 {[%emt 0:01:47]} 25. Qa5 {[%emt 0:03:46]} a6 {[%emt 0:00:05]} 26. Qc7 {[%emt 0:08:02]} Qe7 {[%emt 0:00:13]} 27. Ng3 {[%emt 0:07:51]} Kf7 {[%emt 0:00:29]} 28. Qa5 {[%emt 0:00:31]} Ne4 {[%emt 0:02:52]} 29. Bxe4 {[%emt 0:05:43]} dxe4 {[%emt 0:00:04]} 30. Nf1 {[%emt 0:02:13]} Qd6 {[%emt 0:00:49]} 31. Qb6 {[%emt 0:03:01]} Bc8 {[%emt 0:02:23]} 32. Ne3 {[%emt 0:01:23]} Qxf4 {[%emt 0:00:08]} 33. Qd8 {[%emt 0:00:59]} Bf5 {[%emt 0:01:21]} 34. g3 {[%emt 0:02:23]} Qf3 {[%emt 0:00:05]} 35. Qc7+ {[%emt 0:02:44]} Kg8 {[%emt 0:00:09]} 36. Qb8+ {[%emt 0:01:18]} Kg7 {[%emt 0:00:12]} 37. Qxb7+ {[%emt 0:01:11]} Kh6 {[%emt 0:00:38]} 38. g4 {[%emt 0:00:47]} Be6 {[%emt 0:01:11]} 39. Qe7 {[%emt 0:00:31]} Bd5 {[%emt 0:01:41]} 40. Qf8+ {[%emt 0:00:28]} Kg5 {[%emt 0:00:07]} 41. h4+ {[%emt 0:30:19]} 1-0

[Event "XII Cracow ICC-A 2024"]
[Site "Krakow"]
[Date "2024.06.23"]
[Round "3.14"]
[White "Jake Shanty"]
[Black "Hollan, Martin"]
[Result "1/2-1/2"]
[ECO "A15"]
[WhiteElo "2217"]
[BlackElo "2373"]
[Annotator "RC"]
[PlyCount "66"]
[EventDate "2024.06.20"]
[EventType "swiss"]
[EventCountry "POL"]
[SourceTitle "playchess.com"]
[Source "ChessBase"]
[SourceQuality "1"]
[TimeControl "40/5400+30:1800+30"]

1. Nf3 {[%emt 0:00:06]} Nf6 {[%emt 0:00:15]} 2. c4 {[%emt 0:00:37]} e6 {[%emt 0:00:14]} 3. b3 {[%emt 0:04:06]} d5 {[%emt 0:01:05]} 4. Bb2 {[%emt 0:00:42]} Be7 {[%emt 0:00:06]} 5. e3 {[%emt 0:01:12]} Nbd7 {[%emt 0:04:19]} 6. Be2 {[%emt 0:03:33]} b6 {[%emt 0:01:20]} 7. O-O {[%emt 0:05:16]} Bb7 {[%emt 0:00:06]} 8. d4 {[%emt 0:01:25]} O-O {[%emt 0:01:39]} 9. Nbd2 {[%emt 0:03:35]} Bd6 {[%emt 0:02:42]} 10. Rc1 {[%emt 0:07:06]} Qe7 {[%emt 0:06:51]} 11. Re1 {[%emt 0:14:05]} Rac8 {[%emt 0:01:16]} 12. Bd3 {[%emt 0:02:42]} Ne4 {[%emt 0:01:05]} 13. Qe2 {[%emt 0:07:49]} Nb8 {[%emt 0:09:02]} 14. Nf1 {[%emt 0:08:21]} f5 {[%emt 0:02:05]} 15. cxd5 {[%emt 0:05:29]} exd5 {[%emt 0:00:38]} 16. Ng3 {[%emt 0:00:58]} Rcd8 {[%emt 0:15:37]} 17. Ne5 {[%emt 0:04:10]} Bxe5 {[%emt 0:00:44]} 18. dxe5 {[%emt 0:00:07]} Nxg3 {[%emt 0:03:01]} 19. hxg3 {[%emt 0:00:15]} c5 {[%emt 0:01:23]} 20. g4 {[%emt 0:05:05]} Bc8 {[%emt 0:09:02]} 21. gxf5 {[%emt 0:03:22]} Bxf5 {[%emt 0:00:10]} 22. Bxf5 {[%emt 0:02:30]} Rxf5 {[%emt 0:00:41]} 23. e4 {[%emt 0:02:35]} dxe4 {[%emt 0:01:09]} 24. Qxe4 {[%emt 0:00:12]} Qe6 {[%emt 0:00:06]} 25. Rcd1 {[%emt 0:00:46]} Rff8 {[%emt 0:06:31]} 26. Bc3 {[%emt 0:07:21]} Nc6 {[%emt 0:02:46]} 27. f3 {[%emt 0:01:21]} b5 {[%emt 0:04:37]} 28. Qe3 {[%emt 0:02:53]} Rd5 {[%emt 0:07:08]} 29. Rxd5 {[%emt 0:00:51]} Qxd5 {[%emt 0:00:06]} 30. Qe2 {[%emt 0:00:40]} a6 {[%emt 0:06:09]} 31. Rd1 {[%emt 0:02:39]} Nd4 {[%emt 0:00:12]} 32. Bxd4 {[%emt 0:00:07]} cxd4 {[%emt 0:00:06]} 33. Qd3 {[%emt 0:00:39]} Qxe5 {[%emt 0:00:41]} 1/2-1/2

[Event "XII Cracow ICC-A 2024"]
[Site "Krakow"]
[Date "2024.06.23"]
[Round "3.15"]
[White "Szczurek, Krzysztof"]
[Black "Zwardon, Vojtech"]
[Result "0-1"]
[ECO "B36"]
[WhiteElo "2245"]
[BlackElo "2458"]
[Annotator "TA"]
[PlyCount "54"]
[EventDate "2024.06.20"]
[EventType "swiss"]
[EventCountry "POL"]
[SourceTitle "playchess.com"]
[Source "ChessBase"]
[SourceQuality "1"]
[TimeControl "40/5400+30:1800+30"]

{[%evp 19,54,29,31,41,27,14,11,3,20,18,32,21,28,13,10,0,0,-45,-17,-55,-55,-78,-72,-64,-54,-742,-200,-191,124,-193,-207,-986,-981,-956,-986,-1470,-1419]} 1. e4 c5 2. Nf3 Nc6 3. d4 cxd4 4. Nxd4 g6 5. c4 Nf6 {[%cal Bg8f6,Bf6d7,Bd7c5][%mdl 32]} 6. Nc3 Nxd4 7. Qxd4 d6 8. Be2 Bg7 9. O-O O-O 10. Qd3 Nd7 11. Qc2 Nc5 12. Nd5 e6 13. Nc3 {The position is equal.} Bd7 14. Be3 Bc6 15. f3 {Hoping for b4.} a5 16. Rfd1 Qe7 17. Rd2 Be5 18. Bf1 (18. Rf1 $5) 18... a4 19. Rc1 f5 20. exf5 Rxf5 21. Re2 Raf8 {...Qf6 would now be deadly. Black is more active.} 22. Rce1 $2 {[%mdl 8192] [#]} (22. Qd2 $15) 22... Bxh2+ $1 {[%mdl 512]} 23. Kxh2 $19 Qh4+ 24. Kg1 {Strongly threatening Bf2.} Rh5 $40 {[%mdl 128] Black wants a kill.} 25. Nd5 $2 (25. f4 g5 26. f5 (26. fxg5 $2 Qh2#) 26... Be4 (26... Qxc4 27. Bxc5 Qxc5+ 28. Rf2 $16) (26... Rxf5 $2 27. Qxf5 exf5 28. Bxg5 $19) 27. Bxg5 Qh2+ 28. Kf2 Bxc2 $19 (28... Rxf5+ $2 29. Ke3 $19)) (25. Rd1 Qh2+ 26. Kf2 Bxf3 (26... Qh4+ 27. Kg1 $15) 27. Ke1) 25... exd5 {Black is clearly winning.} 26. Bxc5 d4 {( -> ...Qh2+)} 27. Qd3 dxc5 {Weighted Error Value: White=1.14/Black=0.33.  Loses game:     	White=2     	---        Mistake:       	White=1     	Black=1      Inaccurate:     	White=2     	Black=1      OK:         	White=3     	Black=5      Best:        	---       	Black=2} 0-1

[Event "XII Cracow ICC-A 2024"]
[Site "Krakow"]
[Date "2024.06.23"]
[Round "3.16"]
[White "Drozdowski, Kacper"]
[Black "Klepek, Witold"]
[Result "1-0"]
[ECO "C01"]
[WhiteElo "2448"]
[BlackElo "2236"]
[Annotator "TA"]
[PlyCount "67"]
[EventDate "2024.06.20"]
[EventType "swiss"]
[EventCountry "POL"]
[SourceTitle "playchess.com"]
[Source "ChessBase"]
[SourceQuality "1"]
[TimeControl "40/5400+30:1800+30"]

{[%evp 9,67,12,24,-12,0,-12,0,-2,24,-17,-10,-6,0,7,0,0,72,75,64,96,53,36,50,33,51,31,70,75,70,80,91,83,82,86,91,87,112,128,122,107,114,92,95,97,177,156,163,160,195,196,185,167,279,279,506,506,795,770,769,775]} 1. e4 {[%emt 0:00:03]} e6 {[%emt 0:01:02]} 2. d4 {[%emt 0:01:27]} d5 {[%emt 0:00:06]} 3. exd5 {[%emt 0:01:15]} exd5 {[%emt 0:00:04]} 4. h3 {[%emt 0:00:13]} Nf6 {[%emt 0:00:45]} 5. Nf3 {[%emt 0:00:39]} Bf5 6. Be2 {[%emt 0:01:55]} Bd6 {[%emt 0:06:36]} 7. O-O {[%emt 0:00:20]} Nc6 {[%emt 0:04:06]} 8. c4 {[%emt 0:01:26] The position is equal.} O-O {[%emt 0:06:37]} 9. Nc3 {[%emt 0:02:16]} dxc4 {[%emt 0:02:45]} 10. Bxc4 {[%emt 0:00:36]} Ne4 {[%emt 0:09:41] Dodges Bg5} 11. Re1 {[%emt 0:01:26]} Nxc3 {[%emt 0:03:35]} 12. bxc3 {[%emt 0:00:07]} Qf6 {[%emt 0:02:07]} (12... h6 $11 {remains equal.}) 13. g4 $1 $16 {[%emt 0:16:50]} Bc2 {[%emt 0:09:13]} 14. Qxc2 {[%emt 0:00:57]} Qxf3 {[%emt 0:00:05]} 15. Bf1 {[%emt 0:00:50]} Rae8 {[%emt 0:05:35]} 16. Be3 {[%emt 0:00:30]} Qf6 {[%emt 0:02:03]} 17. Rab1 {[%emt 0:03:24]} Nd8 {[%emt 0:03:42]} 18. Qf5 {[%emt 0:06:37]} Qxf5 {[%emt 0:09:35]} 19. gxf5 {[%emt 0:00:02]} Re7 {[%emt 0:02:32]} 20. c4 {[%emt 0:10:17][%cal Bc3c4,Bc4c5][%mdl 32] And now c5 would win.} Rfe8 {[%emt 0:04:05][%cal Od6f4]} 21. Red1 {[%emt 0:00:09]} c6 {[%emt 0:01:30]} 22. Bg2 {[%emt 0:02:44]} f6 {[%emt 0:07:48]} 23. c5 {[%emt 0:06:54]} Bc7 {[%emt 0:00:59]} 24. Kf1 {[%emt 0:08:43] White is more active.} Kf8 {[%emt 0:00:51]} 25. d5 {[%emt 0:03:21]} cxd5 {[%emt 0:00:06]} 26. Bxd5 {[%emt 0:00:13]} Re5 {[%emt 0:03:50]} (26... Rd7 $16 {was necessary.}) 27. Bxb7 $18 {[%emt 0:04:02] This pair of bishops is nice.} Rxf5 {[%emt 0:03:08]} 28. Bc8 {[%emt 0:03:21]} Rfe5 {[%emt 0:02:11]} 29. Bd7 {[%emt 0:02:55]} R8e7 {[%emt 0:00:18] [#]} 30. c6 $1 $36 {[%emt 0:01:19][%mdl 2048] White is on the roll.} Ra5 {[%emt 0:00:45] [#]} (30... Rxe3 {is a better defense.} 31. fxe3 Rxe3) 31. Bd2 $1 {[%emt 0:00:49]} Ra6 {[%emt 0:02:34]} (31... Ra4 {keeps fighting.} 32. Bb4 Rxb4) 32. Bb4 {[%emt 0:00:34] White is clearly winning.} Nxc6 {[%emt 0:00:29]} (32... Rb6 $142 33. Bxe7+ Kxe7) 33. Bxc6 {[%emt 0:00:22]} Rxc6 {[%emt 0:00:09]} 34. Rd7 {[%emt 0:00:42] Weighted Error Value: White=0.08 (flawless) /Black=0.28 (precise) .  Mistake:       	---       	Black=5      Inaccurate:     	White=1     	Black=2      OK:         	White=8     	Black=8      Best:        	White=3     	Black=2      Strong:       	White=2     	---} 1-0

[Event "XII Cracow ICC-A 2024"]
[Site "Krakow"]
[Date "2024.06.23"]
[Round "3.17"]
[White "Alexiadis, Hristos"]
[Black "Jaskolka, Tomasz"]
[Result "1/2-1/2"]
[ECO "A96"]
[WhiteElo "2378"]
[BlackElo "2249"]
[Annotator "RC"]
[PlyCount "126"]
[EventDate "2024.06.20"]
[EventType "swiss"]
[EventCountry "POL"]
[SourceTitle "playchess.com"]
[Source "ChessBase"]
[SourceQuality "1"]
[TimeControl "40/5400+30:1800+30"]

1. d4 {[%emt 0:06:27]} e6 {[%emt 0:00:05]} 2. Nf3 {[%emt 0:00:36]} f5 {[%emt 0:00:20]} 3. c4 {[%emt 0:01:23]} Nf6 {[%emt 0:00:04]} 4. g3 {[%emt 0:00:13]} Be7 {[%emt 0:00:05]} 5. Bg2 {[%emt 0:00:06]} O-O {[%emt 0:00:05]} 6. O-O {[%emt 0:00:05]} d6 {[%emt 0:00:02]} 7. Nc3 {[%emt 0:00:08]} Ne4 {[%emt 0:01:56]} 8. Qd3 {[%emt 0:06:12]} Nxc3 {[%emt 0:00:11]} 9. bxc3 {[%emt 0:00:14]} Nc6 {[%emt 0:04:56]} 10. e4 {[%emt 0:09:44]} e5 {[%emt 0:07:52]} 11. Re1 {[%emt 0:02:07]} Kh8 {[%emt 0:03:34]} 12. dxe5 {[%emt 0:09:20]} dxe5 {[%emt 0:01:11]} 13. Qxd8 {[%emt 0:00:07]} Rxd8 {[%emt 0:00:43]} 14. Ng5 {[%emt 0:01:18]} Rf8 {[%emt 0:13:10]} 15. exf5 {[%emt 0:00:10]} Bxf5 {[%emt 0:00:05]} 16. Bd5 {[%emt 0:02:16]} Bxg5 {[%emt 0:12:27]} 17. Bxg5 {[%emt 0:00:07]} Rae8 {[%emt 0:03:02]} 18. Be3 {[%emt 0:07:43]} Na5 {[%emt 0:04:16]} 19. Bc5 {[%emt 0:04:56]} Rf6 {[%emt 0:00:05]} 20. Bd4 {[%emt 0:08:32]} c6 {[%emt 0:06:54]} 21. Bxe5 {[%emt 0:00:28]} Rff8 {[%emt 0:01:54]} 22. Bf3 {[%emt 0:09:02]} Nxc4 {[%emt 0:03:56]} 23. Bf4 {[%emt 0:00:06]} Kg8 {[%emt 0:02:53]} 24. Bh5 {[%emt 0:05:21]} Bg6 {[%emt 0:07:22]} 25. Bg4 {[%emt 0:03:14]} Bf7 {[%emt 0:02:15]} 26. Bd7 {[%emt 0:18:31]} Rxe1+ {[%emt 0:01:12]} 27. Rxe1 {[%emt 0:00:03]} Rd8 {[%emt 0:00:16]} 28. Bg4 {[%emt 0:03:31]} Re8 {[%emt 0:06:01]} 29. Rb1 {[%emt 0:00:43]} Bd5 {[%emt 0:00:10]} 30. Kf1 {[%emt 0:01:28]} b5 {[%emt 0:00:46]} 31. Bd1 {[%emt 0:01:07]} Nb6 {[%emt 0:09:11]} 32. Be3 {[%emt 0:00:08]} Bxa2 {[%emt 0:02:58]} 33. Ra1 {[%emt 0:00:11]} Bc4+ {[%emt 0:00:04]} 34. Kg2 {[%emt 0:00:57]} Nd5 {[%emt 0:00:32]} 35. Bxa7 {[%emt 0:00:55]} Re1 {[%emt 0:01:21]} 36. Bd4 {[%emt 0:00:12]} Bf1+ {[%emt 0:00:19]} 37. Kf3 {[%emt 0:00:24]} Be2+ {[%emt 0:00:05]} 38. Bxe2 {[%emt 0:00:36]} Rxa1 {[%emt 0:00:04]} 39. c4 {[%emt 0:00:11]} Ra3+ {[%emt 0:01:51]} 40. Ke4 {[%emt 0:00:04]} bxc4 {[%emt 0:03:32]} 41. Bxc4 {[%emt 0:30:06]} Ra5 {[%emt 0:30:36]} 42. Ke5 {[%emt 0:00:58]} Kf8 {[%emt 0:01:53]} 43. Kd6 {[%emt 0:00:00]} Ne7 {[%emt 0:00:00]} 44. Be6 {[%emt 0:00:00]} Nf5+ {[%emt 0:00:00]} 45. Bxf5 {[%emt 0:00:00]} Rxf5 {[%emt 0:00:00]} 46. Kxc6 {[%emt 0:00:00]} g5 {[%emt 0:00:00]} 47. h3 {[%emt 0:00:00]} h5 {[%emt 0:00:00]} 48. Kd6 {[%emt 0:00:00]} Kf7 {[%emt 0:00:00]} 49. g4 {[%emt 0:00:00]} Rf3 {[%emt 0:00:55]} 50. gxh5 {[%emt 0:00:00]} Rxh3 {[%emt 0:00:11]} 51. Ke5 {[%emt 0:00:00]} Rf3 {[%emt 0:00:20]} 52. Be3 {[%emt 0:00:00]} g4 {[%emt 0:00:48]} 53. Ke4 {[%emt 0:00:00]} Kf6 {[%emt 0:00:37]} 54. h6 {[%emt 0:00:00]} Kg6 {[%emt 0:00:06]} 55. Kd3 {[%emt 0:00:00]} Kf5 {[%emt 0:00:30]} 56. Ke2 {[%emt 0:00:00]} Ke4 {[%emt 0:03:06]} 57. Kf1 {[%emt 0:00:00]} Kd3 {[%emt 0:00:55]} 58. Kg2 {[%emt 0:00:00]} Ke2 {[%emt 0:00:34]} 59. Bd4 {[%emt 0:00:00]} Rh3 {[%emt 0:00:05]} 60. Bg7 {[%emt 0:03:12]} Kd3 {[%emt 0:00:25]} 61. Bf8 {[%emt 0:00:08]} Ke4 {[%emt 0:00:30]} 62. Bg7 {[%emt 0:00:07]} Kf5 {[%emt 0:00:27]} 63. f3 {[%emt 0:00:56]} Rh5 {[%emt 0:00:51]} 1/2-1/2

[Event "XII Cracow ICC-A 2024"]
[Site "Krakow"]
[Date "2024.06.23"]
[Round "3.18"]
[White "Kutowski, Marcel"]
[Black "Citak, Selim"]
[Result "1/2-1/2"]
[ECO "C88"]
[WhiteElo "2230"]
[BlackElo "2345"]
[Annotator "RC"]
[PlyCount "52"]
[EventDate "2024.06.20"]
[EventType "swiss"]
[EventCountry "POL"]
[SourceTitle "playchess.com"]
[Source "ChessBase"]
[SourceQuality "1"]
[TimeControl "40/5400+30:1800+30"]

1. e4 {[%emt 0:00:03]} e5 {[%emt 0:00:59]} 2. Nf3 {[%emt 0:00:05]} Nc6 {[%emt 0:00:21]} 3. Bb5 {[%emt 0:00:07]} a6 {[%emt 0:00:25]} 4. Ba4 {[%emt 0:00:08]} Nf6 {[%emt 0:00:07]} 5. O-O {[%emt 0:00:15]} Be7 {[%emt 0:00:14]} 6. Re1 {[%emt 0:00:44]} b5 {[%emt 0:00:15]} 7. Bb3 {[%emt 0:00:08]} O-O {[%emt 0:00:43]} 8. a4 {[%emt 0:01:10]} Bb7 {[%emt 0:00:27]} 9. d3 {[%emt 0:00:24]} d6 {[%emt 0:00:10]} 10. Nc3 {[%emt 0:04:11]} Na5 {[%emt 0:01:01]} 11. axb5 {[%emt 0:08:04]} Nxb3 {[%emt 0:00:53]} 12. cxb3 {[%emt 0:00:38]} axb5 {[%emt 0:06:00]} 13. Rxa8 {[%emt 0:00:48]} Qxa8 {[%emt 0:02:06]} 14. Nxb5 {[%emt 0:00:57]} c5 {[%emt 0:01:50]} 15. Bg5 {[%emt 0:04:51]} Qa6 {[%emt 0:00:57]} 16. Nc3 {[%emt 0:01:35]} h6 {[%emt 0:03:16]} 17. Bxf6 {[%emt 0:02:28]} Bxf6 {[%emt 0:00:07]} 18. Nd2 {[%emt 0:04:07]} Rd8 {[%emt 0:08:21]} 19. Nc4 {[%emt 0:03:34]} d5 {[%emt 0:07:36]} 20. exd5 {[%emt 0:02:19]} Bxd5 {[%emt 0:00:04]} 21. Nxd5 {[%emt 0:02:05]} Rxd5 {[%emt 0:00:06]} 22. Qc2 {[%emt 0:02:34]} Rd8 {[%emt 0:07:47]} 23. h3 {[%emt 0:01:55]} Rd5 {[%emt 0:05:20]} 24. Rd1 {[%emt 0:07:49]} Rd8 {[%emt 0:00:26]} 25. Ne3 {[%emt 0:04:00]} Qd6 {[%emt 0:01:27]} 26. Qc4 {[%emt 0:05:07]} g6 {[%emt 0:02:49]} 1/2-1/2